lending/lending_fUSD_20241005
["ID","MTS","AMOUNT","RATE_DAILY","PERIOD"]
[339867058,1728094254919,-500.0,0.00039287,120]
[339867059,1728094254929,-731.5,0.00039287,120]
[339867060,1728094254938,-500.0,0.00039287,120]
[339867061,1728094254947,-500.0,0.00039287,120]
[339867062,1728094254957,-500.0,0.00039287,120]
[339867063,1728094254966,-500.0,0.00039287,120]
[339867064,1728094254976,-215.0,0.0003929,2]
[339867065,1728094254985,-214.0,0.0003929,2]
[339867066,1728094254995,-214.0,0.0003929,2]
[339867067,1728094255004,-214.0,0.0003929,2]
[339867068,1728094255013,-201.0,0.0003929,2]
[339867069,1728094255022,-212.0,0.0003929,30]
[339867070,1728094255032,-238.27330472,0.00039291,7]
[339867071,1728094255041,-150.0,0.00039311,7]
[339867072,1728094255051,-238.27330472,0.00039321,7]
[339867073,1728094255061,-150.0,0.00039332,7]
[339867074,1728094255071,-150.0,0.00039334,7]
[339867075,1728094255080,-238.27330472,0.00039352,7]
[339867076,1728094255091,-152.75025876,0.00039352,2]
[339867077,1728094255102,-150.0,0.00039357,7]
[339867078,1728094255113,-500.0,0.00039364,120]
[339867079,1728094255123,-500.0,0.00039364,120]
[339867080,1728094255133,-500.0,0.00039364,120]
[339867081,1728094255143,-500.0,0.00039364,120]
[339867082,1728094255152,-500.0,0.00039364,120]
[339867083,1728094255162,-1453.12,0.00039364,120]
[339867084,1728094255171,-587.94546251,0.00039364,120]
[339867085,1728094255180,-521.73,0.00039364,120]
[339867086,1728094255190,-535.01941352,0.00039364,120]
[339867087,1728094255200,-638.8,0.00039364,120]
[339867088,1728094255211,-500.0,0.00039364,120]
[339867089,1728094255220,-500.0,0.00039364,120]
[339867090,1728094255229,-721.35,0.00039364,120]
[339867091,1728094255239,-537.24,0.00039364,120]
[339867092,1728094255249,-193.33194593,0.00039364,120]
[339867093,1728094255259,-816.06,0.00039364,120]
[339867094,1728094255268,-1170.45,0.00039364,120]
[339867095,1728094255279,-500.0,0.00039364,120]
[339867096,1728094255294,-500.0,0.00039364,120]
[339867097,1728094255304,-150.0,0.00039364,120]
[339867098,1728094255312,-535.34405669,0.00039364,120]
[339867099,1728094255321,-500.0,0.00039364,120]
[339867100,1728094255331,-569.94,0.00039364,120]
[339867101,1728094255341,-500.0,0.00039364,24]
[339867102,1728094255350,-483.00268927,0.00039364,120]
[339867103,1728094255360,-500.0,0.00039364,120]
[339867104,1728094255369,-953.05,0.00039364,120]
[339867105,1728094255378,-1035.66,0.00039364,120]
[339867106,1728094255387,-500.0,0.00039364,120]
[339867107,1728094255396,-500.0,0.00039364,120]
[339867108,1728094255406,-500.0,0.00039364,120]
[339867109,1728094255415,-1507.64,0.00039364,120]
[339867110,1728094255424,-500.0,0.00039364,120]
[339867111,1728094255433,-500.0,0.00039364,120]
[339867112,1728094255443,-500.0,0.00039364,120]
[339867113,1728094255453,-875.69,0.00039364,120]
[339867114,1728094255462,-500.0,0.00039364,120]
[339867115,1728094255471,-1180.55,0.00039364,120]
[339867116,1728094255480,-150.0,0.00039382,7]
[339867117,1728094255490,-238.27330472,0.00039382,7]
[339867118,1728094255499,-384.67198942,0.000394,2]
[339867119,1728094255509,-150.0,0.00039404,7]
[339867120,1728094255518,-20839.1751523,0.00039408,2]
[339867121,1728094255527,-238.27330472,0.00039412,7]
[339867122,1728094255537,-150.0,0.00039417,7]
[339867123,1728094255546,-1717.3578631,0.00039425,2]
[339867124,1728094255555,-150.0,0.00039431,7]
[339867125,1728094255564,-500.0,0.00039435,120]
[339867126,1728094255574,-660.99,0.00039435,120]
[339867127,1728094255583,-1218.65,0.00039435,120]
[339867128,1728094255592,-500.0,0.00039435,120]
[339867129,1728094255602,-586.53,0.00039435,120]
[339867130,1728094255612,-500.0,0.00039435,120]
[339867131,1728094255621,-641.16833063,0.00039435,120]
[339867132,1728094255632,-500.0,0.00039435,120]
[339867133,1728094255641,-612.34,0.00039435,120]
[339867134,1728094255651,-753.54,0.00039435,120]
[339867135,1728094255660,-500.0,0.00039435,120]
[339867136,1728094255670,-637.19929282,0.00039435,120]
[339867137,1728094255679,-664.83,0.00039435,120]
[339867138,1728094255691,-258.73974145,0.00039435,120]
[339867139,1728094255700,-500.0,0.00039435,120]
[339867140,1728094255710,-913.92,0.00039435,120]
[339867141,1728094255720,-500.0,0.00039435,120]
[339867142,1728094255729,-500.0,0.00039435,120]
[339867143,1728094255738,-500.0,0.00039435,120]
[339867144,1728094255747,-610.6,0.00039435,120]
[339867145,1728094255756,-500.0,0.00039435,120]
[339867146,1728094255765,-540.0,0.00039435,120]
[339867147,1728094255775,-1000.0,0.00039442,5]
[339867148,1728094255785,-238.27330472,0.00039443,7]
[339867149,1728094255794,-445.22724,0.00039443,14]
[339867150,1728094255804,-445.22724,0.00039443,14]
[339867151,1728094255814,-151.0,0.00039443,14]
[339867152,1728094255824,-151.0,0.00039443,14]
[339867153,1728094255833,-151.0,0.00039443,14]
[339867154,1728094255843,-153.857212,0.00039443,14]
[339867155,1728094255853,-151.0,0.00039443,14]
[339867156,1728094255862,-151.0,0.00039443,14]
[339867157,1728094255872,-157.10051,0.00039448,120]
[339867158,1728094255882,-150.0,0.0003945,7]
[339867159,1728094255893,-150.0,0.0003945,7]
[339867160,1728094255903,-220.0,0.0003945,30]
[339867161,1728094255913,-300.0,0.00039452,30]
[339867162,1728094255922,-300.0,0.00039452,30]
[339867163,1728094255932,-300.0,0.00039452,30]
[339867164,1728094255942,-300.0,0.00039452,30]
[339867165,1728094255952,-300.0,0.00039452,30]
[339867166,1728094255962,-300.0,0.00039452,30]
[339867167,1728094255971,-300.0,0.00039452,30]
[339867168,1728094255982,-300.0,0.00039452,30]
[339867169,1728094255991,-300.0,0.00039452,30]
[339867170,1728094256001,-300.0,0.00039452,30]
[339867171,1728094256011,-154.784991,0.00039452,14]
[339867172,1728094256021,-152.04454,0.00039452,14]
[339867173,1728094256031,-151.0,0.00039452,14]
[339867174,1728094256041,-151.0,0.00039452,14]
[339867175,1728094256050,-292.744612,0.00039452,14]
[339867176,1728094256060,-151.0,0.00039452,14]
[339867177,1728094256069,-151.0,0.00039452,14]
[339867178,1728094256079,-151.0,0.00039452,14]
[339867179,1728094256088,-151.0,0.00039452,14]
[339867180,1728094256098,-151.0,0.00039452,14]
[339867181,1728094256107,-151.0,0.00039452,14]
[339867182,1728094256118,-151.0,0.00039452,14]
[339867183,1728094256128,-169.309547,0.00039452,14]
[339867184,1728094256138,-151.0,0.00039452,14]
[339867185,1728094256147,-169.309547,0.00039452,14]
[339867186,1728094256157,-400.0,0.00039453,2]
[339867187,1728094256166,-2110.0,0.00039453,2]
[339867188,1728094256176,-151.0,0.00039453,14]
[339867189,1728094256186,-151.0,0.00039453,14]
[339867190,1728094256195,-151.0,0.00039453,14]
[339867191,1728094256205,-151.0,0.00039453,14]
[339867192,1728094256214,-151.0,0.00039453,7]
[339867193,1728094256224,-182.372402,0.00039453,14]
[339867194,1728094256234,-182.372402,0.00039453,14]
[339867195,1728094256244,-151.0,0.00039453,14]
[339867196,1728094256254,-154.227156,0.00039453,14]
[339867197,1728094256263,-151.0,0.00039453,14]
[339867198,1728094256275,-151.0,0.00039453,14]
[339867199,1728094256285,-151.0,0.00039453,14]
[339867200,1728094256294,-151.0,0.00039453,14]
[339867201,1728094256304,-151.0,0.00039453,14]
[339867202,1728094256314,-151.0,0.00039453,14]
[339867203,1728094256324,-151.0,0.00039453,14]
[339867204,1728094256333,-151.0,0.00039453,14]
[339867205,1728094256344,-151.0,0.00039453,14]
[339867206,1728094256354,-151.0,0.00039453,14]
[339867207,1728094256364,-151.0,0.00039453,14]
[339867208,1728094256375,-151.0,0.00039453,14]
[339867209,1728094256385,-152.1317,0.00039453,7]
[339867210,1728094256396,-151.0,0.00039453,14]
[339867211,1728094256405,-152.1317,0.00039453,7]
[339867212,1728094256415,-151.0,0.00039453,14]
[339867213,1728094256426,-151.0,0.00039453,14]
[339867214,1728094256436,-151.0,0.00039453,14]
[339867215,1728094256445,-151.0,0.00039453,14]
[339867216,1728094256455,-151.0,0.00039453,14]
[339867217,1728094256464,-3332.245409,0.00039453,2]
[339867218,1728094256473,-151.0,0.00039453,14]
[339867219,1728094256483,-151.0,0.00039453,14]
[339867220,1728094256492,-151.0,0.00039453,14]
[339867221,1728094256502,-153.309761,0.00039453,14]
[339867222,1728094256512,-151.0,0.00039453,14]
[339867223,1728094256523,-151.0,0.00039453,14]
[339867224,1728094256534,-151.0,0.00039453,14]
[339867225,1728094256543,-151.0,0.00039453,14]
[339867226,1728094256553,-151.0,0.00039453,14]
[339867227,1728094256562,-151.0,0.00039453,14]
[339867228,1728094256571,-1283.3368872,0.00039453,2]
[339867229,1728094256581,-151.0,0.00039453,14]
[339867230,1728094256591,-151.679001,0.00039453,14]
[339867231,1728094256600,-151.0,0.00039453,14]
[339867232,1728094256610,-151.0,0.00039453,14]
[339867233,1728094256619,-3997.8226344,0.00039453,2]
[339867234,1728094256629,-13695.2347851,0.00039453,2]
[339867235,1728094256638,-618.740063,0.00039453,14]
[339867236,1728094256648,-618.740063,0.00039453,14]
[339867237,1728094256657,-151.0,0.00039453,14]
[339867238,1728094256667,-151.0,0.00039453,14]
[339867239,1728094256676,-152.477931,0.00039453,14]
[339867240,1728094256688,-152.493929,0.00039453,14]
[339867241,1728094256697,-305.623152,0.00039453,14]
[339867242,1728094256707,-305.623152,0.00039453,14]
[339867243,1728094256716,-1076.319676,0.00039453,14]
[339867244,1728094256727,-151.718134,0.00039453,14]
[339867245,1728094256736,-1222.4068689,0.00039453,2]
[339867246,1728094256746,-298.470644,0.00039453,14]
[339867247,1728094256755,-298.470644,0.00039453,14]
[339867248,1728094256766,-151.0,0.00039453,14]
[339867249,1728094256777,-151.0,0.00039453,14]
[339867250,1728094256787,-151.0,0.00039453,14]
[339867251,1728094256798,-151.0,0.00039453,14]
[339867252,1728094256809,-151.0,0.00039453,14]
[339867253,1728094256819,-151.0,0.00039453,14]
[339867254,1728094256829,-151.0,0.00039453,14]
[339867255,1728094256839,-1513.6150258,0.00039453,2]
[339867256,1728094256850,-151.450179,0.00039453,14]
[339867257,1728094256860,-151.734953,0.00039453,14]
[339867258,1728094256870,-18366.8700112,0.00039453,2]
[339867259,1728094256880,-151.955629,0.00039453,14]
[339867260,1728094256890,-151.0,0.00039453,14]
[339867261,1728094256899,-151.0,0.00039453,14]
[339867262,1728094256909,-151.0,0.00039453,14]
[339867263,1728094256919,-151.0,0.00039453,14]
[339867264,1728094256929,-151.0,0.00039453,14]
[339867265,1728094256939,-220.0,0.0003946,30]
[339867266,1728094256949,-500.0,0.00039465,120]
[339867267,1728094256959,-500.0,0.00039465,120]
[339867268,1728094256968,-500.0,0.00039465,120]
[339867269,1728094256979,-1013.96,0.00039465,120]
[339867270,1728094256988,-500.0,0.00039465,120]
[339867271,1728094256998,-220.0,0.0003947,30]
[339867272,1728094257007,-1000.0,0.0003947,2]
[339867273,1728094257017,-500.0,0.0003947,2]
[339867274,1728094257027,-151.761037,0.00039473,14]
[339867275,1728094257037,-151.0,0.00039473,14]
[339867276,1728094257047,-2891.3648577,0.00039473,2]
[339867277,1728094257057,-1110.5910474,0.00039473,2]
[339867278,1728094257066,-3459.6886221,0.00039473,2]
[339867279,1728094257076,-11851.7633963,0.00039473,2]
[339867280,1728094257086,-1057.8626224,0.00039473,2]
[339867281,1728094257096,-1309.8721884,0.00039473,2]
[339867282,1728094257106,-15894.5648702,0.00039473,2]
[339867283,1728094257115,-238.27330472,0.00039473,7]
[339867284,1728094257125,-4796.6384142,0.00039477,2]
[339867285,1728094257134,-300.0,0.00039479,30]
[339867286,1728094257144,-300.0,0.00039479,30]
[339867287,1728094257153,-300.0,0.00039479,30]
[339867288,1728094257163,-300.0,0.00039479,30]
[339867289,1728094257172,-300.0,0.00039479,30]
[339867290,1728094257182,-300.0,0.00039479,30]
[339867291,1728094257191,-300.0,0.00039479,30]
[339867292,1728094257201,-300.0,0.00039479,30]
[339867293,1728094257210,-300.0,0.00039479,30]
[339867294,1728094257220,-310.49141016,0.00039479,30]
[339867295,1728094257229,-884168.4615554,0.0003948,30]
[339867296,1728094257239,-151.834152,0.0003948,14]
[339867297,1728094257248,-222.445338,0.0003948,14]
[339867298,1728094257258,-151.883406,0.0003948,14]
[339867299,1728094257267,-151.0,0.0003948,14]
[339867300,1728094257276,-151.0,0.0003948,14]
[339867301,1728094257286,-298.56792,0.0003948,14]
[339867302,1728094257295,-281.843764,0.0003948,14]
[339867303,1728094257304,-151.0,0.0003948,14]
[339867304,1728094257314,-151.0,0.0003948,14]
[339867305,1728094257323,-151.0,0.0003948,14]
[339867306,1728094257332,-151.0,0.0003948,14]
[339867307,1728094257342,-169.309547,0.0003948,14]
[339867308,1728094257351,-151.0,0.0003948,14]
[339867309,1728094257360,-169.309547,0.0003948,14]
[339867310,1728094257370,-445.22724,0.0003948,14]
[339867311,1728094257379,-445.22724,0.0003948,14]
[339867312,1728094257388,-151.0,0.0003948,14]
[339867313,1728094257398,-152.099379,0.0003948,14]
[339867314,1728094257407,-151.779049,0.0003948,14]
[339867315,1728094257417,-151.0,0.0003948,14]
[339867316,1728094257426,-151.0,0.0003948,14]
[339867317,1728094257435,-151.907171,0.0003948,14]
[339867318,1728094257445,-153.000351,0.0003948,14]
[339867319,1728094257454,-169.196469,0.0003948,14]
[339867320,1728094257464,-154.227001,0.0003948,14]
[339867321,1728094257473,-151.0,0.0003948,7]
[339867322,1728094257482,-182.372402,0.0003948,14]
[339867323,1728094257492,-182.372402,0.0003948,14]
[339867324,1728094257501,-151.0,0.0003948,14]
[339867325,1728094257510,-154.212044,0.0003948,14]
[339867326,1728094257520,-151.0,0.0003948,14]
[339867327,1728094257530,-151.0,0.0003948,14]
[339867328,1728094257539,-151.0,0.0003948,14]
[339867329,1728094257548,-151.0,0.0003948,14]
[339867330,1728094257557,-151.0,0.0003948,14]
[339867331,1728094257567,-151.0,0.0003948,14]
[339867332,1728094257576,-151.0,0.0003948,14]
[339867333,1728094257586,-151.0,0.0003948,14]
[339867334,1728094257595,-151.0,0.0003948,14]
[339867335,1728094257604,-151.0,0.0003948,14]
[339867336,1728094257614,-274.604006,0.0003948,14]
[339867337,1728094257624,-152.1317,0.0003948,7]
[339867338,1728094257634,-151.0,0.0003948,14]
[339867339,1728094257643,-152.1317,0.0003948,7]
[339867340,1728094257653,-151.702194,0.0003948,14]
[339867341,1728094257663,-151.0,0.0003948,14]
[339867342,1728094257672,-151.759888,0.0003948,14]
[339867343,1728094257682,-151.0,0.0003948,14]
[339867344,1728094257691,-151.0,0.0003948,14]
[339867345,1728094257704,-151.0,0.0003948,14]
[339867346,1728094257715,-151.0,0.0003948,14]
[339867347,1728094257727,-151.0,0.0003948,14]
[339867348,1728094257738,-151.0,0.0003948,14]
[339867349,1728094257750,-151.0,0.0003948,14]
[339867350,1728094257760,-151.0,0.0003948,14]
[339867351,1728094257770,-152.936757,0.0003948,14]
[339867352,1728094257783,-151.0,0.0003948,14]
[339867353,1728094257792,-151.0,0.0003948,14]
[339867354,1728094257804,-151.0,0.0003948,14]
[339867355,1728094257815,-151.0,0.0003948,14]
[339867356,1728094257827,-151.0,0.0003948,14]
[339867357,1728094257837,-618.740063,0.0003948,14]
[339867358,1728094257849,-618.740063,0.0003948,14]
[339867359,1728094257862,-151.0,0.0003948,14]
[339867360,1728094257871,-151.0,0.0003948,14]
[339867361,1728094257881,-305.623152,0.0003948,14]
[339867362,1728094257892,-305.623152,0.0003948,14]
[339867363,1728094257902,-1076.319676,0.0003948,14]
[339867364,1728094257912,-298.470644,0.0003948,14]
[339867365,1728094258041,-298.470644,0.0003948,14]
[339867366,1728094258051,-151.0,0.0003948,14]
[339867367,1728094258060,-151.0,0.0003948,14]
[339867368,1728094258069,-151.0,0.0003948,14]
[339867369,1728094258078,-151.0,0.0003948,14]
[339867370,1728094258087,-151.0,0.0003948,14]
[339867371,1728094258096,-151.0,0.0003948,14]
[339867372,1728094258105,-151.0,0.0003948,14]
[339867373,1728094258115,-151.0,0.0003948,14]
[339867374,1728094258124,-151.0,0.0003948,14]
[339867375,1728094258133,-151.0,0.0003948,14]
[339867376,1728094258142,-151.862265,0.0003948,14]
[339867377,1728094258151,-151.0,0.0003948,14]
[339867378,1728094258161,-150.0,0.0003948,7]
[339867379,1728094258170,-150.0,0.00039496,7]
[339867380,1728094258179,-2398.3192071,0.00039497,2]
[339867381,1728094258189,-300.0,0.00039499,30]
[339867382,1728094258198,-300.0,0.00039499,30]
[339867383,1728094258207,-300.0,0.00039499,30]
[339867384,1728094258216,-300.0,0.00039499,30]
[339867385,1728094258225,-300.0,0.00039499,30]
[339867386,1728094258235,-300.0,0.00039499,30]
[339867387,1728094258244,-300.0,0.00039499,30]
[339867388,1728094258255,-300.0,0.00039499,30]
[339867389,1728094258265,-300.0,0.00039499,30]
[339867390,1728094258275,-500000.0,0.000395,120]
[339867391,1728094258284,-151.0,0.000395,14]
[339867392,1728094258293,-151.0,0.000395,14]
[339867393,1728094258304,-151.0,0.000395,14]
[339867394,1728094258314,-151.0,0.000395,14]
[339867395,1728094258324,-151.0,0.000395,14]
[339867396,1728094258334,-151.0,0.000395,14]
[339867397,1728094258344,-169.309547,0.000395,14]
[339867398,1728094258354,-151.0,0.000395,14]
[339867399,1728094258364,-169.309547,0.000395,14]
[339867400,1728094258376,-445.22724,0.000395,14]
[339867401,1728094258385,-445.22724,0.000395,14]
[339867402,1728094258396,-151.0,0.000395,14]
[339867403,1728094258405,-151.0,0.000395,14]
[339867404,1728094258415,-151.0,0.000395,14]
[339867405,1728094258424,-151.0,0.000395,7]
[339867406,1728094258435,-182.372402,0.000395,14]
[339867407,1728094258446,-182.372402,0.000395,14]
[339867408,1728094258457,-151.0,0.000395,14]
[339867409,1728094258467,-151.0,0.000395,14]
[339867410,1728094258478,-151.0,0.000395,14]
[339867411,1728094258488,-151.0,0.000395,14]
[339867412,1728094258499,-155.863299,0.000395,14]
[339867413,1728094258509,-151.0,0.000395,14]
[339867414,1728094258519,-151.0,0.000395,14]
[339867415,1728094258530,-151.0,0.000395,14]
[339867416,1728094258540,-156.881546,0.000395,14]
[339867417,1728094258551,-151.0,0.000395,14]
[339867418,1728094258561,-151.0,0.000395,14]
[339867419,1728094258570,-152.1317,0.000395,7]
[339867420,1728094258579,-151.0,0.000395,14]
[339867421,1728094258587,-152.1317,0.000395,7]
[339867422,1728094258596,-154.08678,0.000395,14]
[339867423,1728094258606,-151.0,0.000395,14]
[339867424,1728094258616,-151.0,0.000395,14]
[339867425,1728094258626,-151.0,0.000395,14]
[339867426,1728094258636,-151.0,0.000395,14]
[339867427,1728094258646,-151.0,0.000395,14]
[339867428,1728094258656,-151.0,0.000395,14]
[339867429,1728094258667,-151.0,0.000395,14]
[339867430,1728094258678,-151.0,0.000395,14]
[339867431,1728094258689,-151.0,0.000395,14]
[339867432,1728094258703,-153.045641,0.000395,14]
[339867433,1728094258712,-151.0,0.000395,14]
[339867434,1728094258723,-151.0,0.000395,14]
[339867435,1728094258735,-151.0,0.000395,14]
[339867436,1728094258746,-796.6719,0.000395,2]
[339867437,1728094258756,-618.740063,0.000395,14]
[339867438,1728094258766,-618.740063,0.000395,14]
[339867439,1728094258780,-151.0,0.000395,14]
[339867440,1728094258793,-154.798053,0.000395,14]
[339867441,1728094258802,-305.623152,0.000395,14]
[339867442,1728094258810,-305.623152,0.000395,14]
[339867443,1728094258819,-1076.319676,0.000395,14]
[339867444,1728094258829,-298.470644,0.000395,14]
[339867445,1728094258839,-298.470644,0.000395,14]
[339867446,1728094258849,-151.0,0.000395,14]
[339867447,1728094258858,-151.0,0.000395,14]
[339867448,1728094258868,-151.0,0.000395,14]
[339867449,1728094258878,-151.0,0.000395,14]
[339867450,1728094258887,-151.0,0.000395,14]
[339867451,1728094258896,-151.0,0.000395,14]
[339867452,1728094258905,-151.0,0.000395,14]
[339867453,1728094258915,-151.0,0.000395,14]
[339867454,1728094258924,-151.0,0.000395,14]
[339867455,1728094258933,-151.0,0.000395,14]
[339867456,1728094258943,-151.0,0.000395,14]
[339867457,1728094258951,-238.27330472,0.00039504,7]
[339867458,1728094258961,-150.0,0.0003953,7]
[339867459,1728094258970,-238.27330472,0.00039534,7]
[339867460,1728094258980,-302.9,0.00039534,2]
[339867461,1728094258990,-1139.96395596,0.00039542,5]
[339867462,1728094258999,-150.0,0.00039543,7]
[339867463,1728094259008,-856.75,0.0003956,120]
[339867464,1728094259018,-500.0,0.0003956,120]
[339867465,1728094259028,-500.0,0.0003956,120]
[339867466,1728094259038,-500.0,0.0003956,120]
[339867467,1728094259047,-150.0,0.0003956,7]
[339867468,1728094259057,-500.0,0.00039561,120]
[339867469,1728094259066,-500.0,0.00039561,120]
[339867470,1728094259075,-174.49792004,0.00039561,120]
[339867471,1728094259084,-731.5,0.00039561,120]
[339867472,1728094259094,-500.0,0.00039561,120]
[339867473,1728094259103,-500.0,0.00039561,120]
[339867474,1728094259112,-500.0,0.00039561,120]
[339867475,1728094259121,-502.14051102,0.00039561,120]
[339867476,1728094259130,-238.27330472,0.00039565,7]
[339867477,1728094259140,-150.0,0.00039566,7]
[339867478,1728094259149,-150.0,0.00039579,7]
[339867479,1728094259158,-150.0,0.00039589,7]
[339867480,1728094259166,-238.27330472,0.00039595,7]
[339867481,1728094259175,-238.27330472,0.00039626,7]
[339867482,1728094259185,-150.0,0.00039629,7]
[339867483,1728094259194,-150.0,0.00039635,7]
[339867484,1728094259203,-500.0,0.00039638,120]
[339867485,1728094259213,-500.0,0.00039638,120]
[339867486,1728094259222,-608.54125481,0.00039638,120]
[339867487,1728094259231,-500.0,0.00039638,120]
[339867488,1728094259240,-500.0,0.00039638,120]
[339867489,1728094259249,-1453.12,0.00039638,120]
[339867490,1728094259258,-521.73,0.00039638,120]
[339867491,1728094259267,-638.8,0.00039638,120]
[339867492,1728094259279,-500.0,0.00039638,120]
[339867493,1728094259290,-500.0,0.00039638,120]
[339867494,1728094259299,-721.35,0.00039638,120]
[339867495,1728094259309,-537.24,0.00039638,120]
[339867496,1728094259318,-816.06,0.00039638,120]
[339867497,1728094259327,-1170.45,0.00039638,120]
[339867498,1728094259336,-500.0,0.00039638,120]
[339867499,1728094259345,-500.0,0.00039638,120]
[339867500,1728094259354,-150.0,0.00039638,120]
[339867501,1728094259363,-500.0,0.00039638,120]
[339867502,1728094259372,-569.94,0.00039638,120]
[339867503,1728094259381,-500.0,0.00039638,24]
[339867504,1728094259390,-500.0,0.00039638,120]
[339867505,1728094259400,-953.05,0.00039638,120]
[339867506,1728094259409,-1035.66,0.00039638,120]
[339867507,1728094259418,-165.27291541,0.00039638,120]
[339867508,1728094259427,-500.0,0.00039638,120]
[339867509,1728094259437,-500.0,0.00039638,120]
[339867510,1728094259446,-1507.64,0.00039638,120]
[339867511,1728094259455,-500.0,0.00039638,120]
[339867512,1728094259464,-500.0,0.00039638,120]
[339867513,1728094259473,-500.0,0.00039638,120]
[339867514,1728094259483,-875.69,0.00039638,120]
[339867515,1728094259492,-500.0,0.00039638,120]
[339867516,1728094259501,-1180.55,0.00039638,120]
[339867517,1728094259510,-310.62064469,0.00039648,13]
[339867518,1728094259519,-238.27330472,0.00039656,7]
[339867519,1728094259529,-150.0,0.00039678,7]
[339867520,1728094259538,-150.0,0.00039682,7]
[339867521,1728094259547,-150.0,0.00039682,7]
[339867522,1728094259557,-238.27330472,0.00039686,7]
[339867523,1728094259566,-150.0,0.00039704,7]
[339867524,1728094259575,-500.0,0.00039709,120]
[339867525,1728094259584,-660.99,0.00039709,120]
[339867526,1728094259593,-1218.65,0.00039709,120]
[339867527,1728094259602,-500.0,0.00039709,120]
[339867528,1728094259612,-586.53,0.00039709,120]
[339867529,1728094259621,-500.0,0.00039709,120]
[339867530,1728094259630,-500.0,0.00039709,120]
[339867531,1728094259640,-612.34,0.00039709,120]
[339867532,1728094259649,-753.54,0.00039709,120]
[339867533,1728094259658,-500.0,0.00039709,120]
[339867534,1728094259667,-664.83,0.00039709,120]
[339867535,1728094259676,-500.0,0.00039709,120]
[339867536,1728094259686,-913.92,0.00039709,120]
[339867537,1728094259695,-500.0,0.00039709,120]
[339867538,1728094259704,-500.0,0.00039709,120]
[339867539,1728094259713,-500.0,0.00039709,120]
[339867540,1728094259723,-610.6,0.00039709,120]
[339867541,1728094259732,-500.0,0.00039709,120]
[339867542,1728094259741,-540.0,0.00039709,120]
[339867543,1728094259750,-238.27330472,0.00039717,7]
[339867544,1728094259759,-2000.0,0.00039725,2]
[339867545,1728094259769,-1911.21,0.00039726,120]
[339867546,1728094259778,-150.0,0.00039727,7]
[339867547,1728094259788,-150.0,0.00039728,7]
[339867548,1728094259796,-500.0,0.00039739,120]
[339867549,1728094259806,-500.0,0.00039739,120]
[339867550,1728094259815,-500.0,0.00039739,120]
[339867551,1728094259825,-1013.96,0.00039739,120]
[339867552,1728094259834,-500.0,0.00039739,120]
[339867553,1728094259843,-150.0,0.0003974,7]
[339867554,1728094259852,-238.27330472,0.00039747,7]
[339867555,1728094259862,-157.10051,0.00039748,120]
[339867556,1728094259871,-21955.13678732,0.00039762,90]
[339867557,1728094259880,-150.0,0.00039774,7]